bitfinex-derivatives/quotes_SOLF0:USTF0_20250411
["timestamp","ask_amount","ask_price","bid_price","bid_amount"]
[1744394123595,0.05194875,121.61,121.6,8.2276]
[1744394128598,38.62,121.64,121.63,8.2256]
[1744394128794,38.62,121.67,121.6,25.32027915]
[1744394129097,38.62,121.67,121.65,8.2237]
[1744394129399,8.2254,121.64,121.56,46.27967915]
[1744394129705,0.05554664,121.61,121.59,0.05660098]
[1744394129901,38.62,121.64,121.57,2.2571]
[1744394130102,0.06069977,121.61,121.59,0.05885091]
[1744394130403,0.06069977,121.61,121.6,8.2276]
[1744394131898,0.06069977,121.61,121.6,70.2276]
[1744394132099,0.06069977,121.61,121.6,73.56194794]
[1744394132496,9.977e-05,121.61,121.6,98.88222709]
[1744394133703,38.62,121.68,121.64,8.2243]
[1744394133907,38.62,121.68,121.6,87.32027915]
[1744394134103,8.2238,121.66,121.61,3.33233877]
[1744394134305,38.62,121.68,121.61,8.2266]
[1744394134610,8.2246,121.65,121.6,62.0]
[1744394134808,38.68215162,121.64,121.61,8.28649664]
[1744394134999,38.68215162,121.64,121.61,0.054072]
[1744394135410,8.2265,121.62,121.61,0.054072]
[1744394136610,38.68215162,121.64,121.61,8.280572]
[1744394136909,38.68215162,121.64,121.61,0.054072]
[1744394137706,8.2256,121.63,121.61,8.280672]
[1744394138112,38.68215162,121.64,121.61,0.054072]
[1744394138410,8.2256,121.63,121.61,0.054072]
[1744394138815,8.2262,121.62,121.61,0.054072]
[1744394139310,46.90735162,121.64,121.61,0.054072]
[1744394140012,38.68215162,121.64,121.61,0.054072]
[1744394140212,2.1618,121.63,121.61,0.054072]
[1744394140506,2.1618,121.63,121.54,25.32027915]
[1744394140707,2.1618,121.63,121.55,3.34796889]
[1744394140708,25.32027915,121.59,121.55,3.34796889]
[1744394140908,8.2303,121.56,121.53,8.2319]
[1744394141108,8.2303,121.56,121.54,3.3514172]
[1744394141310,8.2303,121.56,121.5,62.0]
[1744394141509,8.2313,121.55,121.51,3.35162909]
[1744394141712,0.05419044,121.54,121.52,3.40835795]
[1744394142009,0.05419044,121.54,121.53,3.35162909]
[1744394143315,0.05419044,121.54,121.53,11.58392909]
[1744394143517,38.58,121.61,121.53,28.67190824]
[1744394143713,38.58,121.61,121.54,3.35162909]
[1744394144014,38.58,121.61,121.56,8.2298]
[1744394144217,38.58,121.61,121.53,2.2811]
[1744394144406,38.58,121.61,121.54,3.35275357]
[1744394144612,8.28319032,121.58,121.56,0.05754134]
[1744394145017,0.05379032,121.58,121.56,0.05754134]
[1744394145213,0.05379032,121.58,121.56,8.28784134]
[1744394146118,0.05379032,121.58,121.57,8.2296]
[1744394146309,0.05379032,121.58,121.57,11.58127163]
[1744394146517,0.05379032,121.58,121.57,11.58118306]
[1744394149324,0.05379032,121.58,121.57,8.2296]
[1744394149720,38.58,121.61,121.6,8.2276]
[1744394150025,38.58,121.65,121.57,87.32027915]
[1744394150620,46.8048,121.65,121.61,8.2264]
[1744394150826,0.06139766,121.64,121.62,0.05434422]
[1744394151124,8.28639766,121.64,121.62,0.05434422]
[1744394151925,8.28639766,121.64,121.62,8.28054422]
[1744394152523,8.2256,121.63,121.62,0.05434422]
[1744394153626,0.06139766,121.64,121.62,8.28054422]
[1744394154027,0.06139766,121.64,121.62,0.05434422]
[1744394154327,8.2256,121.63,121.62,0.05434422]
[1744394155528,8.2274,121.61,121.58,8.2285]
[1744394155727,38.58,121.61,121.54,4.5256]
[1744394155927,38.58,121.61,121.55,3.3520235]
[1744394156124,38.58,121.61,121.56,3.3520235]
[1744394156325,38.58,121.61,121.59,8.2276]
[1744394156722,46.87033996,121.61,121.59,0.05756613]
[1744394157024,38.64303996,121.61,121.59,0.05756613]
[1744394157223,46.87023996,121.61,121.59,0.05756613]
[1744394157419,38.64303996,121.61,121.59,0.05756613]
[1744394157825,8.2276,121.6,121.59,0.05756613]
[1744394158228,38.64303996,121.61,121.59,0.05756613]
[1744394158432,38.64303996,121.61,121.59,8.28546613]
[1744394158619,38.64303996,121.61,121.59,0.05756613]
[1744394159131,38.64303996,121.61,121.6,8.2276]
[1744394160032,0.06303996,121.61,121.6,8.2276]
[1744394160733,592.22,121.68,121.6,3.35085942]
[1744394160927,630.8,121.68,121.61,3.35085942]
[1744394161129,630.8,121.68,121.62,3.34889695]
[1744394161332,8.2252,121.64,121.62,8.2262]
[1744394161631,2.2348,121.67,121.6,4.3245]
[1744394161833,0.05360482,121.65,121.64,8.2245]
[1744394162232,0.05360482,121.65,121.62,0.05729991]
[1744394162433,0.05360482,121.65,121.63,11.57074907]
[1744394162631,0.05360482,121.65,121.63,8.225]
[1744394162834,0.05360482,121.65,121.62,0.05729991]
[1744394163034,0.05360482,121.65,121.63,3.34525362]
[1744394163242,0.05360482,121.65,121.62,0.05729991]
[1744394163435,0.05360482,121.65,121.63,3.34469916]
[1744394163636,0.05360482,121.65,121.63,8.225]
[1744394163937,0.05360482,121.65,121.62,0.05729991]
[1744394164137,0.05360482,121.65,121.64,8.2249]
[1744394164436,38.58,121.68,121.63,25.32027915]
[1744394164636,38.58,121.68,121.66,8.2229]
[1744394164836,40.7246,121.71,121.63,27.46967915]
[1744394165139,38.58,121.71,121.64,3.34196643]
[1744394165531,0.05623397,121.69,121.66,0.05832912]
[1744394165737,0.05623397,121.69,121.67,8.2223]
[1744394166544,0.05623397,121.69,121.66,0.05832912]
[1744394167543,0.05623397,121.69,121.66,62.05832912]
[1744394169546,0.05623397,121.69,121.68,8.2222]
[1744394171547,63.84027915,121.77,121.67,25.32027915]
[1744394171851,2.1872,121.76,121.68,3.3220153]
[1744394172048,8.2184,121.74,121.71,8.2198]
[1744394172442,8.2193,121.73,121.67,29.67867915]
[1744394172642,8.2193,121.73,121.71,0.0569004]
[1744394172838,46.79818344,121.73,121.71,0.0569004]
[1744394174951,38.57888344,121.73,121.71,8.2770004]
[1744394175452,8.2215,121.69,121.66,8.2235]
[1744394175750,38.57888344,121.73,121.63,65.98967915]
[1744394175751,2.1316,121.72,121.63,65.98967915]
[1744394175947,2.1316,121.72,121.68,8.2221]
[1744394176144,2.1316,121.72,121.63,65.98967915]
[1744394176548,0.05661171,121.69,121.68,8.2218]
[1744394176949,0.05661171,121.69,121.67,0.05830998]
[1744394177550,38.57661171,121.69,121.67,0.05830998]
[1744394177852,8.2222,121.68,121.67,0.05830998]
[1744394178952,38.57661171,121.69,121.67,0.05830998]
[1744394179255,38.57661171,121.69,121.67,8.28060998]
[1744394179549,0.05661171,121.69,121.67,0.05830998]
[1744394179958,0.05661171,121.69,121.68,8.2222]
[1744394185461,0.05661171,121.69,121.67,8.28080998]
[1744394185755,0.05661171,121.69,121.67,0.05830998]
[1744394185958,38.5,121.68,121.67,0.05830998]
[1744394186261,46.7222,121.68,121.67,0.05830998]
[1744394186858,38.5,121.68,121.67,0.05830998]
[1744394187354,46.7222,121.68,121.67,0.05830998]
[1744394188163,8.2244,121.65,121.59,2.2541]
[1744394188349,8.2244,121.65,121.6,3.32885635]
[1744394188548,38.5,121.68,121.6,62.0]
[1744394188954,38.5,121.68,121.63,8.2253]
[1744394189163,8.2233,121.67,121.6,62.0]
[1744394189361,8.28583623,121.67,121.64,0.06302589]
[1744394189665,8.28583623,121.67,121.64,8.28762589]
[1744394190158,8.2235,121.66,121.64,8.28762589]
[1744394190361,0.06253623,121.67,121.65,8.2239]
[1744394190562,0.06253623,121.67,121.64,0.06302589]
[1744394190962,0.06253623,121.67,121.66,8.2235]
[1744394193461,0.06253623,121.67,121.64,8.28772589]
[1744394193957,0.06253623,121.67,121.64,0.06302589]
[1744394195370,8.28583623,121.67,121.64,8.28752589]
[1744394195665,0.06253623,121.67,121.64,8.28752589]
[1744394195964,8.28603623,121.67,121.64,8.28752589]
[1744394196168,38.58253623,121.67,121.64,0.06302589]
[1744394196761,8.2242,121.65,121.64,0.06302589]
[1744394200570,8.2274,121.61,121.57,4.2365]
[1744394201073,8.2274,121.61,121.58,8.2285]
[1744394201664,8.2277,121.6,121.58,8.28716068]
[1744394201968,8.2277,121.6,121.58,0.05866068]
[1744394202560,0.06281797,121.61,121.58,8.28726068]
[1744394203472,8.2279,121.6,121.58,0.05866068]
[1744394203771,8.29021797,121.61,121.58,0.05866068]
[1744394203972,0.06281797,121.61,121.58,8.28726068]
[1744394204173,0.06281797,121.61,121.58,0.05866068]
[1744394204376,8.2283,121.59,121.58,0.05866068]
[1744394206877,8.231,121.55,121.51,4.3275]
[1744394207080,38.48,121.56,121.52,8.2327]
[1744394207273,38.48,121.55,121.49,15.82359165]
[1744394207473,38.48,121.55,121.51,15.82359165]
[1744394207777,8.2306,121.56,121.53,8.2319]
[1744394207978,0.06109172,121.54,121.53,8.2319]
[1744394208178,0.06109172,121.54,121.52,8.28997348]
[1744394208376,0.06109172,121.54,121.52,0.05737348]
[1744394208681,0.06109172,121.54,121.52,8.29007348]
[1744394208878,0.06109172,121.54,121.52,0.05737348]
[1744394209180,0.06109172,121.54,121.52,8.28997348]
[1744394209381,0.06109172,121.54,121.52,0.05737348]
[1744394210178,38.54109172,121.54,121.52,0.05737348]
[1744394210379,46.77299172,121.54,121.52,0.05737348]
[1744394210979,46.77299172,121.54,121.52,8.29037348]
[1744394211280,46.77299172,121.54,121.52,0.05737348]
[1744394212481,8.2323,121.53,121.52,0.05737348]
[1744394212670,38.54109172,121.54,121.52,0.05737348]
[1744394213679,8.2323,121.53,121.52,0.05737348]
[1744394213880,54.36468337,121.54,121.46,22.28489165]
[1744394214183,8.234,121.51,121.48,8.2354]
[1744394214382,38.48,121.5,121.46,4.3101]
[1744394214783,46.7147,121.5,121.47,8.2361]
[1744394215083,0.06331942,121.49,121.47,0.05540756]
[1744394215674,8.238,121.45,121.41,8.2401]
[1744394215979,38.5,121.46,121.41,8.2401]
[1744394216485,8.2388,121.44,121.4,8.2408]
[1744394216891,8.30099069,121.43,121.41,0.05743885]
[1744394217181,0.06179069,121.43,121.41,0.05743885]
[1744394217387,8.30119069,121.43,121.41,0.05743885]
[1744394217985,46.7398,121.42,121.41,0.05743885]
[1744394219782,46.7398,121.42,121.32,66.91032631]
[1744394219783,38.5,121.42,121.33,25.40155151]
[1744394219980,27.50055151,121.41,121.32,4.5304]
[1744394220787,0.05590291,121.38,121.35,0.05922142]
[1744394220983,38.5,121.37,121.35,0.05922142]
[1744394221290,46.7437,121.37,121.35,0.05922142]
[1744394221586,38.5,121.37,121.35,0.05922142]
[1744394221790,38.5,121.37,121.29,4.5304]
[1744394221981,8.2449,121.35,121.29,4.5304]
[1744394222178,25.40155151,121.36,121.29,8.2483]
[1744394222479,25.40155151,121.36,121.27,27.50535151]
[1744394222683,38.5,121.37,121.28,2.1405]
[1744394222883,8.30830268,121.33,121.28,2.1405]
[1744394223084,38.58230268,121.33,121.27,2.1038]
[1744394223284,38.58230268,121.33,121.26,2.0881]
[1744394223591,8.2473,121.31,121.26,2.0881]
[1744394223784,38.52,121.33,121.26,2.0881]
[1744394224089,8.30729413,121.3,121.26,2.0881]
[1744394224685,8.30729413,121.3,121.26,72.3384]
[1744394224891,8.30729413,121.3,121.26,64.0881]
[1744394225091,8.30729413,121.3,121.26,62.0]
[1744394225282,0.05899413,121.3,121.26,62.0]
[1744394225790,8.30709413,121.3,121.26,62.0]
[1744394226087,38.54,121.29,121.23,4.3387]
[1744394226286,38.54,121.29,121.25,8.2509]
[1744394226487,0.05461308,121.27,121.23,4.3387]
[1744394226787,0.05461308,121.27,121.26,8.2507]
[1744394226984,0.05461308,121.27,121.23,4.3387]
[1744394227792,0.05461308,121.27,121.21,27.50225151]
[1744394227793,0.05461308,121.27,121.21,2.1007]
[1744394228092,0.05461308,121.27,121.19,4.287]
[1744394228394,0.05352367,121.24,121.19,4.287]
[1744394228593,0.05352367,121.24,121.21,25.40155151]
[1744394228893,0.05352367,121.24,121.21,62.0]
[1744394229092,0.05352367,121.24,121.21,70.2537]
[1744394229287,0.05352367,121.24,121.21,62.0]
[1744394229690,0.05352367,121.24,121.23,8.2527]
[1744394231291,38.5,121.28,121.22,25.40155151]
[1744394231491,38.5,121.28,121.23,2.0865]
[1744394231685,38.5,121.28,121.24,8.2517]
[1744394231900,38.5,121.28,121.23,2.0865]
[1744394232289,7.662e-05,121.27,121.24,25.45617957]
[1744394232597,7.662e-05,121.27,121.25,64.1085]
[1744394233399,38.5,121.32,121.26,25.40155151]
[1744394233795,63.90155151,121.32,121.23,2.0865]
[1744394233990,38.5,121.32,121.25,25.40155151]
[1744394234292,38.5,121.32,121.27,8.2496]
[1744394234498,0.05864036,121.29,121.27,0.05514795]
[1744394234891,0.05864036,121.29,121.27,8.30464795]
[1744394235192,0.05864036,121.29,121.27,0.05514795]
[1744394235496,38.52,121.35,121.27,25.45669946]
[1744394235686,38.52,121.35,121.27,25.40155151]
[1744394235885,38.52,121.35,121.32,8.2462]
[1744394236192,38.52,121.35,121.29,25.40155151]
[1744394236390,38.52,121.35,121.28,2.1435]
[1744394236586,0.05341563,121.33,121.31,0.06206616]
[1744394237085,0.05341563,121.33,121.32,8.2466]
[1744394237291,0.05341563,121.33,121.31,0.06206616]
[1744394237489,0.05341563,121.33,121.31,8.30916616]
[1744394237790,0.05341563,121.33,121.31,0.06206616]
[1744394238100,0.05341563,121.33,121.31,8.30906616]
[1744394238294,0.05341563,121.33,121.31,0.06206616]
[1744394238599,0.05341563,121.33,121.32,8.2466]
[1744394239194,0.05341563,121.33,121.31,8.30896616]
[1744394239601,0.05341563,121.33,121.31,0.06206616]
[1744394239806,0.05341563,121.33,121.32,8.2466]
[1744394240193,0.05341563,121.33,121.31,0.06206616]
[1744394240995,0.05341563,121.33,121.32,8.2466]
[1744394241196,0.05341563,121.33,121.31,0.06206616]
[1744394242099,8.2466,121.32,121.31,0.06206616]
[1744394243899,8.29961563,121.33,121.31,0.06206616]
[1744394244205,0.05341563,121.33,121.31,0.06206616]
[1744394245306,0.05341563,121.33,121.32,8.2466]
[1744394246608,632.0,121.38,121.36,8.2437]
[1744394246804,38.52,121.38,121.32,25.40155151]
[1744394247309,38.52,121.38,121.31,4.4692]
[1744394247512,63.92155151,121.38,121.31,4.4692]
[1744394247816,8.29801465,121.36,121.33,0.06197196]
[1744394248007,0.05361465,121.36,121.33,0.06197196]
[1744394248207,8.2446,121.35,121.33,0.06197196]
[1744394248806,8.2452,121.34,121.33,0.06197196]
[1744394249013,46.7452,121.34,121.33,0.06197196]
[1744394249215,38.5,121.34,121.33,0.06197196]
[1744394250017,38.5,121.34,121.3,8.2475]
[1744394250318,38.5,121.34,121.26,29.86405151]
[1744394250516,38.5,121.34,121.3,8.2475]
[1744394251011,46.7456,121.34,121.26,4.4625]
[1744394251216,0.05994887,121.33,121.31,0.05205796]
[1744394251711,8.30594887,121.33,121.31,0.05205796]
[1744394251911,0.05994887,121.33,121.31,0.05205796]
[1744394252313,8.2466,121.32,121.31,0.05205796]
[1744394253318,8.30624887,121.33,121.31,0.05205796]
[1744394253923,0.05994887,121.33,121.31,0.05205796]
[1744394254511,0.05994887,121.33,121.32,8.2466]
[1744394258120,42.9156,121.37,121.31,0.05205796]
[1744394258121,38.52,121.37,121.36,8.2439]
[1744394258918,8.2421,121.39,121.36,8.2439]
[1744394259121,46.7615,121.4,121.37,8.2431]
[1744394259322,0.0624318,121.39,121.36,0.06186309]
[1744394260120,8.2428,121.38,121.36,0.06186309]
[1744394261325,8.2428,121.38,121.36,8.30566309]
[1744394262524,8.2428,121.38,121.36,0.06186309]
[1744394263125,8.2428,121.38,121.36,8.30566309]
[1744394263327,8.3046318,121.39,121.36,8.30566309]
[1744394263533,0.0624318,121.39,121.36,8.30566309]
[1744394263829,8.3045318,121.39,121.37,8.243]
[1744394264021,0.0624318,121.39,121.36,0.06186309]
[1744394266429,8.243,121.38,121.36,0.06186309]
[1744394266730,0.0624318,121.39,121.36,0.06186309]
[1744394267329,8.2432,121.37,121.36,0.06186309]
[1744394267825,8.2429,121.38,121.36,0.06186309]
[1744394268329,0.0624318,121.39,121.36,0.06186309]
[1744394268629,8.243,121.38,121.36,0.06186309]
[1744394268926,0.0624318,121.39,121.36,0.06186309]
[1744394269324,8.2432,121.37,121.36,0.06186309]
[1744394269631,0.0624318,121.39,121.36,0.06186309]
[1744394269928,8.3046318,121.39,121.37,8.2427]
[1744394270131,0.0624318,121.39,121.36,0.06186309]
[1744394270430,15.95781813,121.39,121.36,0.06186309]
[1744394270631,15.89538633,121.37,121.28,15.89538633]
[1744394270927,8.2449,121.35,121.29,3.35954862]
[1744394271121,38.46,121.36,121.3,3.35954862]
[1744394271317,8.2446,121.35,121.32,8.2459]
[1744394271521,8.2446,121.35,121.28,18.15968633]
[1744394271722,8.30692736,121.35,121.32,0.05435435]
[1744394271917,8.2457,121.34,121.32,0.05435435]
[1744394272626,8.2459,121.33,121.32,0.05435435]
[1744394272818,24.14128633,121.33,121.32,0.05435435]
[1744394273019,15.89538633,121.33,121.23,83.37552631]
[1744394273223,8.2481,121.3,121.24,25.95159165]
[1744394273430,8.2481,121.3,121.27,8.2494]
[1744394273634,8.2481,121.3,121.28,3.36390532]
[1744394273928,38.46,121.32,121.29,8.2483]
[1744394274129,38.52220401,121.32,121.29,0.054436]
[1744394274324,38.52220401,121.32,121.3,3.36604853]
[1744394274524,38.52220401,121.32,121.3,8.2476]
[1744394275026,38.52220401,121.32,121.29,0.054436]
[1744394275331,0.06220401,121.32,121.3,3.36621643]
[1744394275531,0.06220401,121.32,121.31,3.36697411]
[1744394275721,0.06220401,121.32,121.31,11.61427411]
[1744394276031,0.06220401,121.32,121.31,3.3669425]
[1744394276233,0.06220401,121.32,121.29,0.054436]
[1744394276934,8.2474,121.31,121.29,0.054436]
[1744394277327,0.06220401,121.32,121.29,0.054436]
[1744394277627,38.46,121.31,121.29,0.054436]
[1744394278127,8.2479,121.3,121.29,0.054436]
[1744394278532,46.7075,121.31,121.29,0.054436]
[1744394279837,8.2479,121.3,121.29,0.054436]
[1744394280329,46.7078,121.31,121.29,0.054436]
[1744394280930,38.46,121.31,121.29,0.054436]
[1744394281435,0.06220401,121.32,121.3,3.3681423]
[1744394281626,0.06220401,121.32,121.29,0.054436]
[1744394281935,0.06220401,121.32,121.3,3.36813847]
[1744394282127,0.06220401,121.32,121.31,8.2473]
[1744394282333,0.06220401,121.32,121.31,11.61543847]
[1744394283224,38.46,121.37,121.34,8.245]
[1744394283433,38.46,121.37,121.3,6.7241]
[1744394283630,38.46,121.37,121.31,3.36700393]
[1744394283830,38.46,121.37,121.33,8.2455]
[1744394284029,8.2443,121.36,121.33,8.2455]
[1744394284333,0.05241491,121.36,121.33,0.06267535]
[1744394284533,8.2452,121.34,121.33,0.06267535]
[1744394284735,0.05241491,121.36,121.33,0.06267535]
[1744394286233,25.46141612,121.35,121.26,6.7241]
[1744394286429,25.46141612,121.35,121.27,3.36927754]
[1744394286626,25.46141612,121.35,121.28,3.36927754]
[1744394286933,25.46141612,121.35,121.29,11.61737754]
[1744394287133,25.46141612,121.35,121.29,8.2481]
[1744394287328,0.05839049,121.33,121.31,0.05997534]
[1744394287528,46.7066,121.32,121.31,0.05997534]
[1744394290237,38.46,121.32,121.23,2.1173]
[1744394290537,38.46,121.32,121.27,8.2494]
[1744394290922,38.46,121.32,121.23,2.1173]
[1744394291128,38.46,121.32,121.24,3.37046841]
[1744394291433,0.06023355,121.29,121.26,0.05055684]
[1744394291637,0.06023355,121.29,121.27,3.37046841]
[1744394291830,0.06023355,121.29,121.28,3.37046841]
[1744394292334,0.06023355,121.29,121.28,11.61976841]
[1744394295936,0.06023355,121.29,121.28,3.37046841]
[1744394296239,0.06023355,121.29,121.26,0.05055684]
[1744394296537,0.06023355,121.29,121.27,3.37350868]
[1744394296741,8.30913355,121.29,121.26,8.30085684]
[1744394296940,0.06023355,121.29,121.26,0.05055684]
[1744394297235,8.2496,121.28,121.26,0.05055684]
[1744394299139,0.06023355,121.29,121.26,0.05055684]
[1744394299343,38.42,121.28,121.26,0.05055684]
[1744394299746,46.6698,121.28,121.26,0.05055684]
[1744394301144,38.42,121.28,121.26,8.30095684]
[1744394301343,0.06023355,121.29,121.26,0.05055684]
[1744394301643,0.06023355,121.29,121.28,8.2493]
[1744394301851,0.06023355,121.29,121.26,0.05055684]
[1744394302338,0.06023355,121.29,121.27,8.25]
[1744394302645,0.06023355,121.29,121.26,0.05055684]
[1744394302846,0.06023355,121.29,121.28,8.2493]
[1744394303446,0.06023355,121.29,121.28,11.61738721]
[1744394304349,597.9936,121.34,121.28,3.36858878]
[1744394304647,38.42,121.35,121.29,3.36858878]
[1744394304848,38.42,121.35,121.33,8.2458]
[1744394305544,7.478e-05,121.35,121.34,8.2452]
[1744394305745,7.478e-05,121.35,121.34,11.60814106]
[1744394305948,7.478e-05,121.35,121.34,37.08433756]
[1744394306248,7.478e-05,121.35,121.34,41.33823756]
[1744394307649,38.42,121.41,121.34,33.09303756]
[1744394307849,38.42,121.41,121.35,3.36294106]
[1744394308051,38.42,121.41,121.36,3.36294106]
[1744394308246,38.42,121.41,121.38,8.2419]
[1744394308754,38.47838584,121.41,121.38,0.05805377]
[1744394309154,38.47838584,121.41,121.38,8.30025377]
[1744394310154,38.47838584,121.41,121.39,8.2416]
[1744394311356,38.47838584,121.41,121.38,0.05805377]
[1744394312350,38.47838584,121.41,121.39,8.2413]
[1744394312752,38.47838584,121.41,121.38,0.05805377]
[1744394313245,38.47838584,121.41,121.38,8.30015377]
[1744394313445,38.47838584,121.41,121.38,0.05805377]
[1744394313955,46.71918584,121.41,121.38,0.05805377]
[1744394314456,8.2416,121.4,121.38,0.05805377]
[1744394315159,38.47838584,121.41,121.38,0.05805377]
[1744394315651,8.2418,121.39,121.38,0.05805377]
[1744394316757,8.2418,121.39,121.32,62.0]
[1744394317155,2.2092,121.4,121.32,62.0]
[1744394317359,27.7381965,121.39,121.31,2.2111]
[1744394317550,29.9981965,121.39,121.31,2.2111]
[1744394318055,0.05503697,121.36,121.34,8.3067022]
[1744394318256,0.05503697,121.36,121.34,0.0620022]
[1744394318558,0.05503697,121.36,121.35,8.2445]
[1744394322851,0.05503697,121.36,121.34,0.0620022]
[1744394323064,38.4,121.37,121.34,0.0620022]
[1744394323065,24.7055,121.49,121.35,15.89049462]
[1744394323264,38.34,121.41,121.35,15.89049462]
[1744394323963,38.34,121.41,121.38,8.2422]
[1744394324356,38.40201427,121.41,121.38,8.29864921]
[1744394324561,46.64251427,121.41,121.38,8.29864921]
[1744394326166,38.40201427,121.41,121.39,8.2418]
[1744394328372,38.40201427,121.41,121.38,0.05644921]
[1744394328971,38.40201427,121.41,121.39,8.2414]
[1744394329172,38.40201427,121.41,121.38,0.05644921]
[1744394329669,8.2432,121.37,121.31,18.10159462]
[1744394329975,46.5632,121.37,121.32,3.35475474]
[1744394330170,38.32,121.37,121.34,8.2448]
[1744394330373,38.32,121.37,121.31,18.10159462]
[1744394330572,38.32,121.37,121.35,8.2445]
[1744394330773,38.37655852,121.37,121.35,8.2445]
[1744394331673,46.62025852,121.37,121.33,0.05280102]
[1744394332067,38.37655852,121.37,121.35,8.2445]
[1744394332462,38.37655852,121.37,121.33,0.05280102]
[1744394332669,46.62015852,121.37,121.34,8.2449]
[1744394333375,8.2439,121.36,121.33,8.29830102]
[1744394333781,38.37655852,121.37,121.33,0.05280102]
[1744394333977,15.89049462,121.36,121.33,0.05280102]
[1744394334283,15.89049462,121.36,121.27,54.21049462]
[1744394334478,8.2456,121.34,121.31,8.2469]
[1744394334679,38.32,121.33,121.31,8.2469]
[1744394335180,46.61798,121.33,121.31,0.05512389]
[1744394335380,38.37198,121.33,121.31,0.05512389]
[1744394335580,8.2466,121.32,121.31,0.05512389]
[1744394341083,8.2486,121.29,121.23,15.89049462]
[1744394341288,38.34,121.29,121.27,8.2499]
[1744394341488,38.34,121.29,121.23,15.89049462]
[1744394341678,38.34,121.29,121.24,19.25319051]
[1744394341877,38.34,121.29,121.24,15.89049462]
[1744394342084,0.05820515,121.28,121.27,8.25]
[1744394345085,38.34,121.32,121.26,15.89049462]
[1744394345387,12.6029,121.33,121.26,15.89049462]
[1744394345587,2.2932,121.35,121.28,15.89049462]
[1744394345791,2.2932,121.35,121.29,3.36212931]
[1744394346087,2.2932,121.35,121.32,8.2464]
[1744394346293,0.05664898,121.33,121.31,0.06001009]
[1744394346791,38.34,121.32,121.31,0.06001009]
[1744394346989,46.5866,121.32,121.31,0.06001009]
[1744394347189,38.34,121.32,121.31,0.06001009]
[1744394347390,0.05664898,121.33,121.31,0.06001009]
[1744394347787,0.05664898,121.33,121.31,8.30681009]
[1744394348091,8.30254898,121.33,121.31,0.06001009]
[1744394348691,8.2466,121.32,121.31,0.06001009]
[1744394349991,8.2485,121.3,121.24,77.89049462]
[1744394350191,46.5885,121.3,121.25,3.36713843]
[1744394350488,46.5885,121.3,121.26,3.36713843]
[1744394350688,38.34,121.3,121.28,8.2493]
[1744394351085,38.39863577,121.3,121.28,8.2493]
[1744394352589,46.64663577,121.3,121.27,8.2496]
[1744394353291,38.39863577,121.3,121.28,8.2492]
[1744394354190,46.64653577,121.3,121.28,8.2492]
[1744394354491,38.39863577,121.3,121.28,8.2492]
[1744394354688,46.64703577,121.3,121.27,8.2497]
[1744394354894,38.39863577,121.3,121.24,77.89049462]
[1744394355086,38.39863577,121.3,121.25,3.36807389]
[1744394355286,8.2486,121.29,121.26,11.61861678]
[1744394355492,38.39863577,121.3,121.26,8.25]
[1744394355793,54.28913039,121.3,121.22,20.40849462]
[1744394355993,54.23049462,121.3,121.23,3.3701087]
[1744394356197,0.06261783,121.27,121.24,3.3701087]
[1744394356391,0.06261783,121.27,121.25,8.251]
[1744394357897,8.31291783,121.27,121.24,8.2517]
[1744394358196,8.31291783,121.27,121.22,4.518]
[1744394358398,8.31291783,121.27,121.25,8.2512]
[1744394358698,8.31291783,121.27,121.22,66.518]
[1744394358897,0.06261783,121.27,121.23,3.37028575]
[1744394359197,0.06261783,121.27,121.25,8.2508]
[1744394359392,8.31261783,121.27,121.25,8.2508]
[1744394359593,0.06261783,121.27,121.25,8.2508]
[1744394360700,8.31261783,121.27,121.25,8.2508]
[1744394361298,0.06261783,121.27,121.25,8.2508]
[1744394361791,0.06261783,121.27,121.23,15.89049462]
[1744394361990,38.28,121.33,121.25,15.89049462]
[1744394362194,38.28,121.33,121.28,15.89049462]
[1744394362497,46.5261,121.33,121.28,15.89049462]
[1744394362902,46.5261,121.33,121.29,8.2483]
[1744394363104,0.05305285,121.32,121.3,0.06166696]
[1744394363404,0.05305285,121.32,121.3,8.30926696]
[1744394363702,8.29965285,121.32,121.3,8.30926696]
[1744394364701,0.05305285,121.32,121.3,8.30926696]
[1744394364905,0.05305285,121.32,121.31,8.2473]
[1744394365605,46.5242,121.36,121.3,15.95216158]
[1744394365606,38.28,121.36,121.3,15.95216158]